OrganisationURI,OrganisationLabel,OrganisationalUnit,TransactionNumber,Invoice Ref.,BeneficiaryName,Expense Type,Purpose,PaymentDate,Amount
http://statistics.data.gov.uk/id/local-authority-district/23UB,Cheltenham Borough Council,Repairs and Maintenance,14044670,183596,A & E Fire Equipment Limited,R2042-HRA100,R & M of Build Fire Systems,13/05/2016,641.03
http://statistics.data.gov.uk/id/local-authority-district/23UB,Cheltenham Borough Council,Income and Expenditure on Investment Properties and Changes in Their Fair Value,14044730,3955,Abels Surveyors,R4400-FIE040,Services - Professional Fees,06/05/2016,"1,165.00"
http://statistics.data.gov.uk/id/local-authority-district/23UB,Cheltenham Borough Council,Corporate Management,14045046,2957,Achieve Breakthrough Limited,R4400-COR001,Services - Professional Fees,27/05/2016,"9,999.00"
http://statistics.data.gov.uk/id/local-authority-district/23UB,Cheltenham Borough Council,Door Entry,14044795,30947,Allhands Limited T/A Harrold Jones Services,C1107-CAH010,Building Works,13/05/2016,638.00
http://statistics.data.gov.uk/id/local-authority-district/23UB,Cheltenham Borough Council,Door Entry,14044794,30948,Allhands Limited T/A Harrold Jones Services,C1107-CAH010,Building Works,13/05/2016,"5,340.00"
http://statistics.data.gov.uk/id/local-authority-district/23UB,Cheltenham Borough Council,Accountancy,14044975,65476,Alpha Colour Printers Limited,R4300-SUP009,Printing - Services,20/05/2016,569.00
http://statistics.data.gov.uk/id/local-authority-district/23UB,Cheltenham Borough Council,Democratic Representation and Management,14045224,65537,Alpha Colour Printers Limited,R4300-DRM001,Printing - Services,27/05/2016,674.00
http://statistics.data.gov.uk/id/local-authority-district/23UB,Cheltenham Borough Council,District Elections,14044809,28980,Alpha Response Print & Mail Limited,R4300-ELE002,Printing - Services,20/05/2016,"2,727.30"
http://statistics.data.gov.uk/id/local-authority-district/23UB,Cheltenham Borough Council,Police & Crime Commissioner Elections,14044809,28980,Alpha Response Print & Mail Limited,R4300-ELE008,Printing - Services,20/05/2016,"3,272.76"
http://statistics.data.gov.uk/id/local-authority-district/23UB,Cheltenham Borough Council,Police & Crime Commissioner Elections,14044858,28992,Alpha Response Print & Mail Limited,R4300-ELE008,Printing - Services,13/05/2016,"4,792.80"
http://statistics.data.gov.uk/id/local-authority-district/23UB,Cheltenham Borough Council,District Elections,14044859,28993,Alpha Response Print & Mail Limited,R4300-ELE002,Printing - Services,13/05/2016,"5,831.00"
http://statistics.data.gov.uk/id/local-authority-district/23UB,Cheltenham Borough Council,Phase 3 Development,14044788,A504/9037,Anthony Brookes Surveys Limited,C1107-CAH039,Building Works,13/05/2016,"1,440.00"
http://statistics.data.gov.uk/id/local-authority-district/23UB,Cheltenham Borough Council,JCS Affordable Housing Capacity Funding,14044890,9444,Ark Housing Consultancy LLP,R4401-HOS100,Services - Fees and Charges,13/05/2016,625.00
http://statistics.data.gov.uk/id/local-authority-district/23UB,Cheltenham Borough Council,Shopmobility,14044976,CHEL05SM02/PS,Arthur J Gallagher Insurance Brokers Limited,R2801-PUT102,Insurances - Property All Risks,20/05/2016,"1,771.14"
http://statistics.data.gov.uk/id/local-authority-district/23UB,Cheltenham Borough Council,"Cemetery, Crematorium and Churchyards",14044786,13799,Ashdown Supplies,R4011-CCM001,Goods For Resale,06/05/2016,"1,136.00"
http://statistics.data.gov.uk/id/local-authority-district/23UB,Cheltenham Borough Council,Community Safety (Crime Reduction),14044822,7352,Association of Town Centre Management,R4409-CCR001,Partnership Staff Fees,13/05/2016,"2,400.00"
http://statistics.data.gov.uk/id/local-authority-district/23UB,Cheltenham Borough Council,Joint Core Strategy,14045246,16007242,Atkins Limited (Transport Planning),R4400-PLP101,Services - Professional Fees,27/05/2016,"1,300.00"
http://statistics.data.gov.uk/id/local-authority-district/23UB,Cheltenham Borough Council,Joint Core Strategy,14045247,16007243,Atkins Limited (Transport Planning),R4400-PLP101,Services - Professional Fees,27/05/2016,"5,500.00"
http://statistics.data.gov.uk/id/local-authority-district/23UB,Cheltenham Borough Council,Environmental Health General,14044727,80746,Atlantic Umbrella Company Limited,R1100-REG001,Agency Staff,13/05/2016,"1,414.00"
http://statistics.data.gov.uk/id/local-authority-district/23UB,Cheltenham Borough Council,Environmental Health General,14044801,80960,Atlantic Umbrella Company Limited,R1100-REG001,Agency Staff,13/05/2016,588.00
http://statistics.data.gov.uk/id/local-authority-district/23UB,Cheltenham Borough Council,Environmental Health General,14044880,81152,Atlantic Umbrella Company Limited,R1100-REG001,Agency Staff,20/05/2016,686.00
http://statistics.data.gov.uk/id/local-authority-district/23UB,Cheltenham Borough Council,Environmental Health General,14045017,81355,Atlantic Umbrella Company Limited,R1100-REG001,Agency Staff,27/05/2016,616.00
http://statistics.data.gov.uk/id/local-authority-district/23UB,Cheltenham Borough Council,Environmental Health General,14045225,81551,Atlantic Umbrella Company Limited,R1100-REG001,Agency Staff,27/05/2016,602.00
http://statistics.data.gov.uk/id/local-authority-district/23UB,Cheltenham Borough Council,Cheltenham Business Partnership,14044796,160502-057,Blackadder Media Limited,R4411-HLD130,Consultancy Fees,06/05/2016,"4,290.00"
http://statistics.data.gov.uk/id/local-authority-district/23UB,Cheltenham Borough Council,Animal Control,14043747,800259683,Bromsgrove District Council,R4413-REG003,Dog Kennels Fees,27/05/2016,"1,075.70"
http://statistics.data.gov.uk/id/local-authority-district/23UB,Cheltenham Borough Council,Animal Control,14044867,800291471,Bromsgrove District Council,R4413-REG003,Dog Kennels Fees,13/05/2016,775.00
http://statistics.data.gov.uk/id/local-authority-district/23UB,Cheltenham Borough Council,Cheltenham Municipal Offices,14044879,08/259361,Bunzl Cleaning and Hygiene Supplies,R4009-ADB101,Materials - Cleaning Materials,20/05/2016,508.57
http://statistics.data.gov.uk/id/local-authority-district/23UB,Cheltenham Borough Council,Joint Core Strategy,14045016,7225,Cambridge Econometrics Limited,R4400-PLP101,Services - Professional Fees,20/05/2016,"4,460.00"
http://statistics.data.gov.uk/id/local-authority-district/23UB,Cheltenham Borough Council,Joint Core Strategy,14045107,6017051367,Capita Property and Infrastructure Limited,R4400-PLP101,Services - Professional Fees,27/05/2016,"2,000.00"
http://statistics.data.gov.uk/id/local-authority-district/23UB,Cheltenham Borough Council,"Cemetery, Crematorium and Churchyards",14044793,29400,CDK Castings Limited T/A Arkell & Hurcombe,R4011-CCM001,Goods For Resale,06/05/2016,805.50
http://statistics.data.gov.uk/id/local-authority-district/23UB,Cheltenham Borough Council,Sports & Open Spaces Operations,14045220,boat deposit,Cheltenham Coffee Co Limited,R2076-OPS002,Grounds Maintenance - Non Contract,27/05/2016,"2,500.00"
http://statistics.data.gov.uk/id/local-authority-district/23UB,Cheltenham Borough Council,Accountancy,14044929,3119057,CIPFA Business Limited,R4309-SUP009,Books,20/05/2016,870.00
http://statistics.data.gov.uk/id/local-authority-district/23UB,Cheltenham Borough Council,Cashiers,14044702,C/IC143152,Civica UK Limited,R4534-SUP014,IT - Maint Agreements,06/05/2016,"4,000.00"
http://statistics.data.gov.uk/id/local-authority-district/23UB,Cheltenham Borough Council,"Cemetery, Crematorium and Churchyards",14044970,560596,Comensura Limited,R1100-CCM001,Agency Staff,13/05/2016,"1,864.82"
http://statistics.data.gov.uk/id/local-authority-district/23UB,Cheltenham Borough Council,Homelessness,14044405,782,County Community Projects (CCP),R6280-HOM001,Grants,06/05/2016,"54,000.00"
http://statistics.data.gov.uk/id/local-authority-district/23UB,Cheltenham Borough Council,Household Waste,14044803,3004428,Craemer UK Limited,R4000-WST001,Equipment Purchase,13/05/2016,760.00
http://statistics.data.gov.uk/id/local-authority-district/23UB,Cheltenham Borough Council,Community Development,14044905,(20) DHR-KP,REDACTED,R6280-COM001,Grants,13/05/2016,"1,000.00"
http://statistics.data.gov.uk/id/local-authority-district/23UB,Cheltenham Borough Council,Licensing,14044852,A13943,Disclosure & Barring Service,R1601-REG002,CRB Police Checks,20/05/2016,572.00
http://statistics.data.gov.uk/id/local-authority-district/23UB,Cheltenham Borough Council,Recreation Centre Repairs & Maintenance,14044769,DG 3878,Dive Gym Equipment Limited,R2083-REC111,R&M of Build - Routine,06/05/2016,"1,052.55"
http://statistics.data.gov.uk/id/local-authority-district/23UB,Cheltenham Borough Council,Council Tax Collection,14045056,20568,Dundore Limited T/A Security Data Print,R4300-LTC001,Printing - Services,20/05/2016,"1,399.90"
http://statistics.data.gov.uk/id/local-authority-district/23UB,Cheltenham Borough Council,Income and Expenditure on Investment Properties and Changes in Their Fair Value,14044823,163123,E.G. Carter & Co. Limited,R2004-FIE040,R & M of Build Programmed,13/05/2016,573.59
http://statistics.data.gov.uk/id/local-authority-district/23UB,Cheltenham Borough Council,"Cemetery, Crematorium and Churchyards",14044824,163124,E.G. Carter & Co. Limited,R2004-CCM001,R & M of Build Programmed,13/05/2016,701.32
http://statistics.data.gov.uk/id/local-authority-district/23UB,Cheltenham Borough Council,Pittville Park Play Area,14044839,Refreshment,Eibe Play Ltd,C4000-CAP125,Acquisition of Equipment,20/05/2016,"20,612.15"
http://statistics.data.gov.uk/id/local-authority-district/23UB,Cheltenham Borough Council,Pittville Park Play Area,14044839,Refreshment,Eibe Play Ltd,C4000-CAP125,Acquisition of Equipment,20/05/2016,"-20,612.15"
http://statistics.data.gov.uk/id/local-authority-district/23UB,Cheltenham Borough Council,Pittville Park Play Area,14044839,Refreshment,Eibe Play Ltd,C4000-CAP125,Acquisition of Equipment,20/05/2016,"20,612.15"
http://statistics.data.gov.uk/id/local-authority-district/23UB,Cheltenham Borough Council,Cheltenham Municipal Offices,14045094,15284,Elevate Consulting Limited,R4400-ADB101,Services - Professional Fees,27/05/2016,"1,725.00"
http://statistics.data.gov.uk/id/local-authority-district/23UB,Cheltenham Borough Council,Human Resources,14045030,1535,Elysian Training Limited,R1401-SUP003,Professional Fees,27/05/2016,"2,709.00"
http://statistics.data.gov.uk/id/local-authority-district/23UB,Cheltenham Borough Council,Human Resources,14045029,1548,Elysian Training Limited,R1401-SUP003,Professional Fees,27/05/2016,"4,536.00"
http://statistics.data.gov.uk/id/local-authority-district/23UB,Cheltenham Borough Council,Planning Policy,14044549,CBC273-02,Enfusion Limited,R4400-PLP001,Services - Professional Fees,06/05/2016,"3,000.00"
http://statistics.data.gov.uk/id/local-authority-district/23UB,Cheltenham Borough Council,Environmental Works (Tenant Selection),14044532,WM006942,English Landscapes Limited t/a The Landscape Group,C1107-CAH029,Building Works,13/05/2016,"1,456.18"
http://statistics.data.gov.uk/id/local-authority-district/23UB,Cheltenham Borough Council,Environmental Works (Tenant Selection),14044530,WM006944,English Landscapes Limited t/a The Landscape Group,C1107-CAH029,Building Works,13/05/2016,"1,247.40"
http://statistics.data.gov.uk/id/local-authority-district/23UB,Cheltenham Borough Council,Environmental Works (Tenant Selection),14044529,WM006945,English Landscapes Limited t/a The Landscape Group,C1107-CAH029,Building Works,06/05/2016,"2,369.85"
http://statistics.data.gov.uk/id/local-authority-district/23UB,Cheltenham Borough Council,Air Quality,14044335,22038,Enviro Technology Services plc,R4003-REG012,Tools & Equipment - R & M,20/05/2016,"7,800.00"
http://statistics.data.gov.uk/id/local-authority-district/23UB,Cheltenham Borough Council,Recycling Centres,14044460,B01168187,Environment Agency,R4402-RYC004,Services - General Licences,06/05/2016,"2,717.00"
http://statistics.data.gov.uk/id/local-authority-district/23UB,Cheltenham Borough Council,Car Parks - Off Street Operations,14045049,61235,Eurolink Security Installations Group Limited,R4434-CPK001,CCTV Staff,20/05/2016,"6,430.00"
http://statistics.data.gov.uk/id/local-authority-district/23UB,Cheltenham Borough Council,Sustainability Measures,14044304,1356,Evolve Home Energy Solutions Limited,C1107-CAH032,Building Works,20/05/2016,"2,014.00"
http://statistics.data.gov.uk/id/local-authority-district/23UB,Cheltenham Borough Council,Sustainability Measures,14044835,1466,Evolve Home Energy Solutions Limited,C1107-CAH032,Building Works,06/05/2016,"2,789.50"
http://statistics.data.gov.uk/id/local-authority-district/23UB,Cheltenham Borough Council,Sustainability Measures,14044974,1491,Evolve Home Energy Solutions Limited,C1107-CAH032,Building Works,13/05/2016,522.50
http://statistics.data.gov.uk/id/local-authority-district/23UB,Cheltenham Borough Council,"Cheltenham Environmental Fund- Transport					",14044703,221005,Furnitubes International Limited,R4000-ENF103,Equipment Purchase,06/05/2016,"1,332.00"
http://statistics.data.gov.uk/id/local-authority-district/23UB,Cheltenham Borough Council,External Improvements,14044548,GP15/018621,G Purchase Construction Limited,C1107-CAH003,Building Works,13/05/2016,"160,736.71"
http://statistics.data.gov.uk/id/local-authority-district/23UB,Cheltenham Borough Council,Trade Waste,14044712,SINV-095317,Gelpack Excelsior Limited,R4000-TRW001,Equipment Purchase,13/05/2016,"5,499.00"
http://statistics.data.gov.uk/id/local-authority-district/23UB,Cheltenham Borough Council,Emergency Planning,14044647,1800394299,Gloucestershire County Council,R4400-EMP001,Services - Professional Fees,13/05/2016,"17,083.60"
http://statistics.data.gov.uk/id/local-authority-district/23UB,Cheltenham Borough Council,Land Charges,14044834,1800394849,Gloucestershire County Council,R4401-BUC004,Services - Fees and Charges,06/05/2016,"2,960.00"
http://statistics.data.gov.uk/id/local-authority-district/23UB,Cheltenham Borough Council,Community Welfare Grants,14044202,1800394868,Gloucestershire County Council,R6280-GBD001,Grants,27/05/2016,837.78
http://statistics.data.gov.uk/id/local-authority-district/23UB,Cheltenham Borough Council,Household Waste,14044811,1800398702,Gloucestershire County Council,R4400-WST001,Services - Professional Fees,13/05/2016,"6,946.16"
http://statistics.data.gov.uk/id/local-authority-district/23UB,Cheltenham Borough Council,Homelessness,14044955,280415,Gloucestershire Nightstop,R6280-HOM001,Grants,20/05/2016,"5,000.00"
http://statistics.data.gov.uk/id/local-authority-district/23UB,Cheltenham Borough Council,Trees,14044797,1248,Goroots,R2070-PLP006,Tree Work,13/05/2016,"3,500.00"
http://statistics.data.gov.uk/id/local-authority-district/23UB,Cheltenham Borough Council,Prince of Wales Stadium Repairs & Maintenance,14044753,3288,Greenway Partnership Limited T/A GPL Building Services,R2004-REC112,R & M of Build Programmed,13/05/2016,"1,500.00"
http://statistics.data.gov.uk/id/local-authority-district/23UB,Cheltenham Borough Council,Recreation Centre Repairs & Maintenance,14044892,3310,Greenway Partnership Limited T/A GPL Building Services,R2062-REC111,R & M of Build Cyclical Electrical Remedials,20/05/2016,562.50
http://statistics.data.gov.uk/id/local-authority-district/23UB,Cheltenham Borough Council,Parks & Gardens Operations,14044887,3311,Greenway Partnership Limited T/A GPL Building Services,R2007-OPS001,R & M of Plant Contracts,20/05/2016,"3,365.46"
http://statistics.data.gov.uk/id/local-authority-district/23UB,Cheltenham Borough Council,District Elections,14044987,3334,Greenway Partnership Limited T/A GPL Building Services,R4401-ELE002,Services - Fees and Charges,20/05/2016,"3,622.50"
http://statistics.data.gov.uk/id/local-authority-district/23UB,Cheltenham Borough Council,Police & Crime Commissioner Elections,14044987,3334,Greenway Partnership Limited T/A GPL Building Services,R4401-ELE008,Services - Fees and Charges,20/05/2016,"4,347.00"
http://statistics.data.gov.uk/id/local-authority-district/23UB,Cheltenham Borough Council,Flood Risk Management,14044999,45025,Halcrow Group Limited,R5001-FRM101,TPP - Major External Contractors,20/05/2016,"2,077.50"
http://statistics.data.gov.uk/id/local-authority-district/23UB,Cheltenham Borough Council,Cheltenham Business Partnership,14044798,41603,Heartflood Limited,R4411-HLD130,Consultancy Fees,27/05/2016,"37,561.00"
http://statistics.data.gov.uk/id/local-authority-district/23UB,Cheltenham Borough Council,Cheltenham Business Partnership,14044798,41603,Heartflood Limited,R4411-HLD130,Consultancy Fees,27/05/2016,"-37,561.00"
http://statistics.data.gov.uk/id/local-authority-district/23UB,Cheltenham Borough Council,Cheltenham Business Partnership,14044798,41603,Heartflood Limited,R4411-HLD130,Consultancy Fees,27/05/2016,"37,435.50"
http://statistics.data.gov.uk/id/local-authority-district/23UB,Cheltenham Borough Council,Arle Road Nursery Repairs Maintenance,14044157,15443,Hellion Environmental Limited,R2003-OPS111,R & M of Build Emergency Works,13/05/2016,659.98
http://statistics.data.gov.uk/id/local-authority-district/23UB,Cheltenham Borough Council,Supervision and Management,14044484,SIAL/00020490,Herefordshire Housing Limited,R4445-HRA110,Communal Alarms - Monitoring & Maintenance,06/05/2016,543.40
http://statistics.data.gov.uk/id/local-authority-district/23UB,Cheltenham Borough Council,Supervision and Management,14044477,SIAL/00020543,Herefordshire Housing Limited,R4445-HRA110,Communal Alarms - Monitoring & Maintenance,06/05/2016,514.80
http://statistics.data.gov.uk/id/local-authority-district/23UB,Cheltenham Borough Council,Community Alarms,14044472,SIAL/00020657,Herefordshire Housing Limited,R4445-SPP002,Communal Alarms - Monitoring & Maintenance,06/05/2016,"12,080.64"
http://statistics.data.gov.uk/id/local-authority-district/23UB,Cheltenham Borough Council,Supervision and Management,14044472,SIAL/00020657,Herefordshire Housing Limited,R4445-HRA110,Communal Alarms - Monitoring & Maintenance,06/05/2016,732.16
http://statistics.data.gov.uk/id/local-authority-district/23UB,Cheltenham Borough Council,General Fund Balance Sheet,14044868,CISDEDUCT0604-050516,HMRC (CBC - CIS),B6220-BAL100,CIS Deductions Control (reallocated),13/05/2016,"8,199.75"
http://statistics.data.gov.uk/id/local-authority-district/23UB,Cheltenham Borough Council,Repairs and Maintenance,14044782,150312AA1,Ian Williams Limited,R2060-HRA100,R & M of Build Cyclical Painting Communal Areas,27/05/2016,"50,493.48"
http://statistics.data.gov.uk/id/local-authority-district/23UB,Cheltenham Borough Council,Repairs and Maintenance,14044782,150312AA1,Ian Williams Limited,R2060-HRA100,R & M of Build Cyclical Painting Communal Areas,27/05/2016,"-50,493.48"
http://statistics.data.gov.uk/id/local-authority-district/23UB,Cheltenham Borough Council,Repairs and Maintenance,14044782,150312AA1,Ian Williams Limited,R2060-HRA100,R & M of Build Cyclical Painting Communal Areas,27/05/2016,"50,493.48"
http://statistics.data.gov.uk/id/local-authority-district/23UB,Cheltenham Borough Council,Art Gallery & Museum Operations,14028470,5814,Icon.net Limited,R4317-CUL107,Non Staff Advertising,25/05/2016,"1,145.00"
http://statistics.data.gov.uk/id/local-authority-district/23UB,Cheltenham Borough Council,Development costs - Swindon Road,14044654,002 IN022321,J Harper & Sons (Leominster) Limited,C1107-CAH050,Building Works,13/05/2016,"106,162.61"
http://statistics.data.gov.uk/id/local-authority-district/23UB,Cheltenham Borough Council,Development costs - Swindon Road,14044654,002 IN022321,J Harper & Sons (Leominster) Limited,C1107-CAH050,Building Works,13/05/2016,"106,162.61"
http://statistics.data.gov.uk/id/local-authority-district/23UB,Cheltenham Borough Council,Development costs - Swindon Road,14044654,002 IN022321,J Harper & Sons (Leominster) Limited,C1107-CAH050,Building Works,13/05/2016,"-106,162.61"
http://statistics.data.gov.uk/id/local-authority-district/23UB,Cheltenham Borough Council,Development costs - Garage Sites 2a,14044941,006 IN022340,J Harper & Sons (Leominster) Limited,C1107-CAH052,Building Works,13/05/2016,"148,646.88"
http://statistics.data.gov.uk/id/local-authority-district/23UB,Cheltenham Borough Council,Development costs - Garage Sites 2a,14044941,006 IN022340,J Harper & Sons (Leominster) Limited,C1107-CAH052,Building Works,13/05/2016,"-5,337.98"
http://statistics.data.gov.uk/id/local-authority-district/23UB,Cheltenham Borough Council,Press & PR/Communications,14045162,34423,Jadu Limited,R4531-SUP018,IT - Purchase of Software,27/05/2016,"6,300.00"
http://statistics.data.gov.uk/id/local-authority-district/23UB,Cheltenham Borough Council,Allotments,14044427,6172,John Herbert Skip Hire Limited,R4323-OPS004,Skip Hire,27/05/2016,975.00
http://statistics.data.gov.uk/id/local-authority-district/23UB,Cheltenham Borough Council,Allotments,14044740,6184,John Herbert Skip Hire Limited,R4323-OPS004,Skip Hire,27/05/2016,795.00
http://statistics.data.gov.uk/id/local-authority-district/23UB,Cheltenham Borough Council,Car Parks - Off Street Operations,14044729,EN002-0206908,Jones Lang Lasalle Limited,R2300-CPK001,Business Rates,13/05/2016,"10,209.05"
http://statistics.data.gov.uk/id/local-authority-district/23UB,Cheltenham Borough Council,Car Parks - Off Street Operations,14044161,INV-0159,JS Security Limited,R4400-CPK001,Services - Professional Fees,06/05/2016,840.00
http://statistics.data.gov.uk/id/local-authority-district/23UB,Cheltenham Borough Council,Cheltenham Depot,14044051,INV-0160,JS Security Limited,R2083-ADB103,R&M of Build - Routine,06/05/2016,693.00
http://statistics.data.gov.uk/id/local-authority-district/23UB,Cheltenham Borough Council,Cheltenham Depot,14044053,INV-0256,JS Security Limited,R2083-ADB103,R&M of Build - Routine,06/05/2016,672.00
http://statistics.data.gov.uk/id/local-authority-district/23UB,Cheltenham Borough Council,Cheltenham Depot,14044054,INV-0332,JS Security Limited,R2083-ADB103,R&M of Build - Routine,06/05/2016,651.00
http://statistics.data.gov.uk/id/local-authority-district/23UB,Cheltenham Borough Council,Cheltenham Depot,14045018,INV-0370,JS Security Limited,R2083-ADB103,R&M of Build - Routine,20/05/2016,630.00
http://statistics.data.gov.uk/id/local-authority-district/23UB,Cheltenham Borough Council,Car Parks - Off Street Operations,14045019,INV-0372,JS Security Limited,R4400-CPK001,Services - Professional Fees,20/05/2016,840.00
http://statistics.data.gov.uk/id/local-authority-district/23UB,Cheltenham Borough Council,Sports & Open Spaces Operations,14044928,111623,Keep Britain Tidy,R2075-OPS002,Grounds Maintenance - Contract,13/05/2016,"1,716.00"
http://statistics.data.gov.uk/id/local-authority-district/23UB,Cheltenham Borough Council,Development costs - Swindon Road,14045244,RH/JM/16023,Kirkham Pryer Limited,C1107-CAH050,Building Works,27/05/2016,"1,800.00"
http://statistics.data.gov.uk/id/local-authority-district/23UB,Cheltenham Borough Council,Development Control - Applications,14044044,4595,"Knight, Kavanagh & Page (KKP Management Consultants)",R9100-DEV001,Contributions - County Council,06/05/2016,"1,518.90"
http://statistics.data.gov.uk/id/local-authority-district/23UB,Cheltenham Borough Council,Development Control - Applications,14044856,4612,"Knight, Kavanagh & Page (KKP Management Consultants)",R4000-DEV001,Equipment Purchase,13/05/2016,"25,641.00"
http://statistics.data.gov.uk/id/local-authority-district/23UB,Cheltenham Borough Council,New Heating Installations,14044994,1181805,Liberty Gas Group,C1107-CAH009,Building Works,20/05/2016,"3,600.91"
http://statistics.data.gov.uk/id/local-authority-district/23UB,Cheltenham Borough Council,Repairs and Maintenance,14044993,1181806,Liberty Gas Group,R2016-HRA100,R & M of Build Void Repairs,20/05/2016,933.63
http://statistics.data.gov.uk/id/local-authority-district/23UB,Cheltenham Borough Council,Repairs and Maintenance,14044993,1181806,Liberty Gas Group,R2040-HRA100,R & M of Build Central Heating,20/05/2016,"40,195.37"
http://statistics.data.gov.uk/id/local-authority-district/23UB,Cheltenham Borough Council,ICT,14045008,16000562,LinchPin Networks Limited,R4548-SUP005,IT - Cabling and Network,20/05/2016,"3,199.00"
http://statistics.data.gov.uk/id/local-authority-district/23UB,Cheltenham Borough Council,Recreation Centre Repairs & Maintenance,14044626,10736,Massie Electrics Limited,R2062-REC111,R & M of Build Cyclical Electrical Remedials,13/05/2016,655.35
http://statistics.data.gov.uk/id/local-authority-district/23UB,Cheltenham Borough Council,Development costs - Swindon Road,14044380,1130-01,McAllister Associates Limited,C1107-CAH050,Building Works,27/05/2016,"2,204.60"
http://statistics.data.gov.uk/id/local-authority-district/23UB,Cheltenham Borough Council,External Improvements,14044841,5844,Mcdonnell Price Roofing Contractors Limited,C1107-CAH003,Building Works,13/05/2016,"6,624.00"
http://statistics.data.gov.uk/id/local-authority-district/23UB,Cheltenham Borough Council,Adaptations for the Disabled (CBC),14044965,REDACTED,Mears Home Improvements (Client Account),C1107-CAH028,Building Works,13/05/2016,"9,579.00"
http://statistics.data.gov.uk/id/local-authority-district/23UB,Cheltenham Borough Council,Reception/Customer Services,14044942,20355,Meridian Options Systems Support Limited,R4534-SUP008,IT - Maint Agreements,20/05/2016,"1,912.90"
http://statistics.data.gov.uk/id/local-authority-district/23UB,Cheltenham Borough Council,Telephones,14044950,20374,Meridian Options Systems Support Limited,R4514-SUP006,Comms - Telephone Rental/Service Charges,27/05/2016,"3,114.64"
http://statistics.data.gov.uk/id/local-authority-district/23UB,Cheltenham Borough Council,Repairs and Maintenance,14044947,26001,Morgan Lambert Limited,R2040-HRA100,R & M of Build Central Heating,13/05/2016,748.00
http://statistics.data.gov.uk/id/local-authority-district/23UB,Cheltenham Borough Council,"Cemetery, Crematorium and Churchyards",14044864,50516,Mr J Sureda,R4401-CCM001,Services - Fees and Charges,13/05/2016,780.60
http://statistics.data.gov.uk/id/local-authority-district/23UB,Cheltenham Borough Council,Scooter Stores,14045136,286,Nature First Limited,C1107-CAH037,Building Works,27/05/2016,600.00
http://statistics.data.gov.uk/id/local-authority-district/23UB,Cheltenham Borough Council,Supervision and Management,14045103,289,Nature First Limited,R5013-HRA110,Minor Neighbourhood Works - St Paul's Areas,27/05/2016,"1,195.00"
http://statistics.data.gov.uk/id/local-authority-district/23UB,Cheltenham Borough Council,Royal Well Bus Node,14044497,2404,Nick Bevan Consulting Limited,R2004-PUT101,R & M of Build Programmed,06/05/2016,750.00
http://statistics.data.gov.uk/id/local-authority-district/23UB,Cheltenham Borough Council,Fire Protection,14044681,9593,NKS Contracts (Central) Limited,C1107-CAH015,Building Works,13/05/2016,"-4,595.05"
http://statistics.data.gov.uk/id/local-authority-district/23UB,Cheltenham Borough Council,Fire Protection,14044681,9593,NKS Contracts (Central) Limited,C1107-CAH015,Building Works,13/05/2016,"4,595.05"
http://statistics.data.gov.uk/id/local-authority-district/23UB,Cheltenham Borough Council,Fire Protection,14044681,9593,NKS Contracts (Central) Limited,C1107-CAH015,Building Works,13/05/2016,"4,595.05"
http://statistics.data.gov.uk/id/local-authority-district/23UB,Cheltenham Borough Council,Press & PR/Communications,14044952,Q375790,NLA Media Access Limited,R4402-SUP018,Services - General Licences,27/05/2016,665.00
http://statistics.data.gov.uk/id/local-authority-district/23UB,Cheltenham Borough Council,Joint Core Strategy,14044552,2015/19,NM Strategic Solutions Limited,R4400-PLP101,Services - Professional Fees,06/05/2016,"4,791.09"
http://statistics.data.gov.uk/id/local-authority-district/23UB,Cheltenham Borough Council,Sports & Open Spaces Repairs & Maintenance,14044209,SL1207,Oakley Neighbourhood Project,R2001-OPS122,R & M of Fix & Fit - General,06/05/2016,802.85
http://statistics.data.gov.uk/id/local-authority-district/23UB,Cheltenham Borough Council,Recreation Centre Repairs & Maintenance,14044770,C6905/16/03,O'Brien & Price Cheltenham Limited,R2004-REC111,R & M of Build Programmed,06/05/2016,"1,335.00"
http://statistics.data.gov.uk/id/local-authority-district/23UB,Cheltenham Borough Council,Repairs and Maintenance,14045022,O0397519,Orbis Protect Limited,R2012-HRA100,R & M of Build Standby and Call Out,20/05/2016,"1,127.03"
http://statistics.data.gov.uk/id/local-authority-district/23UB,Cheltenham Borough Council,Joint Core Strategy,14044731,406863,Ove Arup & Partners Limited,R4400-PLP101,Services - Professional Fees,06/05/2016,"4,002.00"
http://statistics.data.gov.uk/id/local-authority-district/23UB,Cheltenham Borough Council,Car Parks - Off Street Operations,14044515,UK87051,Parkeon Limited,R4401-CPK001,Services - Fees and Charges,13/05/2016,"1,945.12"
http://statistics.data.gov.uk/id/local-authority-district/23UB,Cheltenham Borough Council,Cemetery & Crematorium Repairs & Maintenance,14045060,3337,PJ Combustion Solutions Limited,R4003-CCM111,Tools & Equipment - R & M,27/05/2016,979.00
http://statistics.data.gov.uk/id/local-authority-district/23UB,Cheltenham Borough Council,Recreation Centre Repairs & Maintenance,14044894,264,POOL DIVING SOLUTIONS LIMITED,R2004-REC111,R & M of Build Programmed,13/05/2016,"3,900.00"
http://statistics.data.gov.uk/id/local-authority-district/23UB,Cheltenham Borough Council,Disabled Facility Grants,14044983,REDACTED,Premiere Healthcare Limited,C5000-CAP221,Grants,20/05/2016,"1,299.00"
http://statistics.data.gov.uk/id/local-authority-district/23UB,Cheltenham Borough Council,Joint Core Strategy,14044614,PIN831823,Randstad Employment Bureau Limited,R4400-PLP101,Services - Professional Fees,06/05/2016,"1,370.25"
http://statistics.data.gov.uk/id/local-authority-district/23UB,Cheltenham Borough Council,Joint Core Strategy,14044613,PINF831822,Randstad Employment Bureau Limited,R4400-PLP101,Services - Professional Fees,06/05/2016,543.75
http://statistics.data.gov.uk/id/local-authority-district/23UB,Cheltenham Borough Council,Council Tax Collection,14044401,9051932702,Royal Mail,R4521-LTC001,Postages - franking machine,06/05/2016,863.26
http://statistics.data.gov.uk/id/local-authority-district/23UB,Cheltenham Borough Council,Green Waste,14044401,9051932702,Royal Mail,R4521-RYC002,Postages - franking machine,06/05/2016,527.23
http://statistics.data.gov.uk/id/local-authority-district/23UB,Cheltenham Borough Council,Council Tax Collection,14044516,9051972134,Royal Mail,R4521-LTC001,Postages - franking machine,06/05/2016,597.21
http://statistics.data.gov.uk/id/local-authority-district/23UB,Cheltenham Borough Council,District Elections,14044969,9052053595,Royal Mail,R4520-ELE002,Postages - stamps,20/05/2016,634.62
http://statistics.data.gov.uk/id/local-authority-district/23UB,Cheltenham Borough Council,Police & Crime Commissioner Elections,14044969,9052053595,Royal Mail,R4520-ELE008,Postages - stamps,20/05/2016,757.46
http://statistics.data.gov.uk/id/local-authority-district/23UB,Cheltenham Borough Council,District Elections,14044804,9052055769,Royal Mail,R4521-ELE002,Postages - franking machine,13/05/2016,"3,902.00"
http://statistics.data.gov.uk/id/local-authority-district/23UB,Cheltenham Borough Council,Police & Crime Commissioner Elections,14044804,9052055769,Royal Mail,R4521-ELE008,Postages - franking machine,13/05/2016,"3,645.68"
http://statistics.data.gov.uk/id/local-authority-district/23UB,Cheltenham Borough Council,Council Tax Collection,14044804,9052055769,Royal Mail,R4521-LTC001,Postages - franking machine,13/05/2016,533.51
http://statistics.data.gov.uk/id/local-authority-district/23UB,Cheltenham Borough Council,Council Tax Collection,14044877,9052099822,Royal Mail,R4521-LTC001,Postages - franking machine,20/05/2016,"1,371.29"
http://statistics.data.gov.uk/id/local-authority-district/23UB,Cheltenham Borough Council,District Elections,14044968,9052105959,Royal Mail,R4520-ELE002,Postages - stamps,20/05/2016,"1,064.20"
http://statistics.data.gov.uk/id/local-authority-district/23UB,Cheltenham Borough Council,District Elections,14044968,9052105959,Royal Mail,R4520-ELE002,Postages - stamps,20/05/2016,"1,268.24"
http://statistics.data.gov.uk/id/local-authority-district/23UB,Cheltenham Borough Council,District Elections,14045037,9052153807,Royal Mail,R4520-ELE002,Postages - stamps,20/05/2016,576.45
http://statistics.data.gov.uk/id/local-authority-district/23UB,Cheltenham Borough Council,Police & Crime Commissioner Elections,14045037,9052153807,Royal Mail,R4520-ELE008,Postages - stamps,20/05/2016,691.74
http://statistics.data.gov.uk/id/local-authority-district/23UB,Cheltenham Borough Council,Housing Benefit Administration,14045144,9052193018,Royal Mail,R4521-HBA001,Postages - franking machine,27/05/2016,625.06
http://statistics.data.gov.uk/id/local-authority-district/23UB,Cheltenham Borough Council,Council Tax Collection,14045144,9052193018,Royal Mail,R4521-LTC001,Postages - franking machine,27/05/2016,843.52
http://statistics.data.gov.uk/id/local-authority-district/23UB,Cheltenham Borough Council,Sandford Lido car park,14044964,SANDFORD LIDO APR 16,Sandford Parks Lido (Trading) Limited,R5003-CPK103,TPP - Agency Fees,20/05/2016,"22,563.76"
http://statistics.data.gov.uk/id/local-authority-district/23UB,Cheltenham Borough Council,Sandford Lido car park,14044964,SANDFORD LIDO APR 16,Sandford Parks Lido (Trading) Limited,R5003-CPK103,TPP - Agency Fees,20/05/2016,"-1,683.33"
http://statistics.data.gov.uk/id/local-authority-district/23UB,Cheltenham Borough Council,Repairs and Maintenance,14044806,794,SAS EPC,R2018-HRA100,R & M of Build Voids Energy Performance Certificates,13/05/2016,765.00
http://statistics.data.gov.uk/id/local-authority-district/23UB,Cheltenham Borough Council,Car Park Income Collection,14045015,551602,Security Plus+ Limited,R4435-CPK002,Cash Collection Contract,20/05/2016,868.90
http://statistics.data.gov.uk/id/local-authority-district/23UB,Cheltenham Borough Council,Prince of Wales Stadium Repairs & Maintenance,14044900,559089127,Severn Trent Services Analytical Services,R2402-REC112,Sewerage and Environmental Services,13/05/2016,"1,976.64"
http://statistics.data.gov.uk/id/local-authority-district/23UB,Cheltenham Borough Council,Prince of Wales Stadium Repairs & Maintenance,14045053,559089127,Severn Trent Water,R2402-REC112,Sewerage and Environmental Services,20/05/2016,"1,976.64"
http://statistics.data.gov.uk/id/local-authority-district/23UB,Cheltenham Borough Council,Referendum,14045118,251559,Shaw & Sons Limited,R4000-ELE011,Equipment Purchase,27/05/2016,783.75
http://statistics.data.gov.uk/id/local-authority-district/23UB,Cheltenham Borough Council,Legal,14044849,72832 040416,Simon Bird QC,R4426-SUP004,Legal Expenses,13/05/2016,"1,250.00"
http://statistics.data.gov.uk/id/local-authority-district/23UB,Cheltenham Borough Council,Flood Risk Management,14044943,5744,Slimbridge Wetland Plants Limited T/A JPR Environmental,R5001-FRM101,TPP - Major External Contractors,13/05/2016,"6,195.11"
http://statistics.data.gov.uk/id/local-authority-district/23UB,Cheltenham Borough Council,Soil Stacks,14044686,13189,Snape Contracting Limited (Snapecall),C1107-CAH024,Building Works,13/05/2016,"-26,226.29"
http://statistics.data.gov.uk/id/local-authority-district/23UB,Cheltenham Borough Council,Soil Stacks,14044686,13189,Snape Contracting Limited (Snapecall),C1107-CAH024,Building Works,13/05/2016,"26,226.29"
http://statistics.data.gov.uk/id/local-authority-district/23UB,Cheltenham Borough Council,Soil Stacks,14044686,13189,Snape Contracting Limited (Snapecall),C1107-CAH024,Building Works,13/05/2016,"26,226.29"
http://statistics.data.gov.uk/id/local-authority-district/23UB,Cheltenham Borough Council,Soil Stacks,14044687,13190,Snape Contracting Limited (Snapecall),C1107-CAH024,Building Works,13/05/2016,"11,916.63"
http://statistics.data.gov.uk/id/local-authority-district/23UB,Cheltenham Borough Council,Soil Stacks,14044687,13190,Snape Contracting Limited (Snapecall),C1107-CAH024,Building Works,13/05/2016,"-11,916.63"
http://statistics.data.gov.uk/id/local-authority-district/23UB,Cheltenham Borough Council,Soil Stacks,14044687,13190,Snape Contracting Limited (Snapecall),C1107-CAH024,Building Works,13/05/2016,"11,916.63"
http://statistics.data.gov.uk/id/local-authority-district/23UB,Cheltenham Borough Council,Soil Stacks,14044688,13191,Snape Contracting Limited (Snapecall),C1107-CAH024,Building Works,13/05/2016,"-30,063.45"
http://statistics.data.gov.uk/id/local-authority-district/23UB,Cheltenham Borough Council,Soil Stacks,14044688,13191,Snape Contracting Limited (Snapecall),C1107-CAH024,Building Works,13/05/2016,"30,063.45"
http://statistics.data.gov.uk/id/local-authority-district/23UB,Cheltenham Borough Council,Soil Stacks,14044688,13191,Snape Contracting Limited (Snapecall),C1107-CAH024,Building Works,13/05/2016,"30,063.45"
http://statistics.data.gov.uk/id/local-authority-district/23UB,Cheltenham Borough Council,Bulking Facility,14044449,116481,South Wales Wood Recycling Ltd,R5005-RYC008,TPP - Minor Contract Fees,06/05/2016,883.30
http://statistics.data.gov.uk/id/local-authority-district/23UB,Cheltenham Borough Council,Bulking Facility,14044448,116537,South Wales Wood Recycling Ltd,R5005-RYC008,TPP - Minor Contract Fees,06/05/2016,"1,831.50"
http://statistics.data.gov.uk/id/local-authority-district/23UB,Cheltenham Borough Council,Bulking Facility,14044443,116596,South Wales Wood Recycling Ltd,R5005-RYC008,TPP - Minor Contract Fees,06/05/2016,"1,914.00"
http://statistics.data.gov.uk/id/local-authority-district/23UB,Cheltenham Borough Council,Bulking Facility,14044444,116653,South Wales Wood Recycling Ltd,R5005-RYC008,TPP - Minor Contract Fees,06/05/2016,988.90
http://statistics.data.gov.uk/id/local-authority-district/23UB,Cheltenham Borough Council,Bulking Facility,14044445,116692,South Wales Wood Recycling Ltd,R5005-RYC008,TPP - Minor Contract Fees,06/05/2016,975.70
http://statistics.data.gov.uk/id/local-authority-district/23UB,Cheltenham Borough Council,Bulking Facility,14044724,116753,South Wales Wood Recycling Ltd,R5005-RYC008,TPP - Minor Contract Fees,13/05/2016,"1,751.20"
http://statistics.data.gov.uk/id/local-authority-district/23UB,Cheltenham Borough Council,Bulking Facility,14044725,116817,South Wales Wood Recycling Ltd,R5005-RYC008,TPP - Minor Contract Fees,13/05/2016,"2,757.70"
http://statistics.data.gov.uk/id/local-authority-district/23UB,Cheltenham Borough Council,Bulking Facility,14044958,116879,South Wales Wood Recycling Ltd,R5005-RYC008,TPP - Minor Contract Fees,20/05/2016,"2,638.90"
http://statistics.data.gov.uk/id/local-authority-district/23UB,Cheltenham Borough Council,Bulking Facility,14044957,116950,South Wales Wood Recycling Ltd,R5005-RYC008,TPP - Minor Contract Fees,20/05/2016,"1,819.40"
http://statistics.data.gov.uk/id/local-authority-district/23UB,Cheltenham Borough Council,"Cemetery, Crematorium and Churchyards",14044698,SI-2029690,Spaldings Limited,R4000-CCM001,Equipment Purchase,13/05/2016,"1,627.41"
http://statistics.data.gov.uk/id/local-authority-district/23UB,Cheltenham Borough Council,Community Welfare Grants,14044870,community pride spra 060516,ST Pauls Road Area Residents Association (SPRA),R6280-GBD001,Grants,13/05/2016,861.12
http://statistics.data.gov.uk/id/local-authority-district/23UB,Cheltenham Borough Council,Recreation Centre Repairs & Maintenance,14044847,19694,Stanger Testing Services Limited,R2004-REC111,R & M of Build Programmed,13/05/2016,"4,645.00"
http://statistics.data.gov.uk/id/local-authority-district/23UB,Cheltenham Borough Council,Sports & Open Spaces Operations,14044181,105148,Stow Agricultural Limited incorporating Wildcare,R2071-OPS002,Open Spaces and Grassed Areas,13/05/2016,846.60
http://statistics.data.gov.uk/id/local-authority-district/23UB,Cheltenham Borough Council,Shopmobility,14044519,5000,System Six Design & Build,R2062-PUT102,R & M of Build Cyclical Electrical Remedials,06/05/2016,694.50
http://statistics.data.gov.uk/id/local-authority-district/23UB,Cheltenham Borough Council,Cheltenham Municipal Offices,14044921,5086,System Six Design & Build,R2081-ADB101,Roof Repairs,20/05/2016,"4,316.00"
http://statistics.data.gov.uk/id/local-authority-district/23UB,Cheltenham Borough Council,Council Tax Leaflet,14043646,COUNCIL TAX CREDIT DISTRIBUTION,Tewkesbury Borough Council,R9100-LTC003,Contributions - County Council,13/05/2016,"4,164.07"
http://statistics.data.gov.uk/id/local-authority-district/23UB,Cheltenham Borough Council,Supervision and Management,14042912,DEBT104553,Tewkesbury Borough Council,R4420-HRA110,Legal Expenses And Court Costs,27/05/2016,"11,073.00"
http://statistics.data.gov.uk/id/local-authority-district/23UB,Cheltenham Borough Council,Development Control - Applications,14044210,DEBT104660,Tewkesbury Borough Council,R4400-DEV001,Services - Professional Fees,13/05/2016,"19,750.00"
http://statistics.data.gov.uk/id/local-authority-district/23UB,Cheltenham Borough Council,Legal,14044855,DEBT104775,Tewkesbury Borough Council,R4401-SUP004,Services - Fees and Charges,13/05/2016,"145,718.93"
http://statistics.data.gov.uk/id/local-authority-district/23UB,Cheltenham Borough Council,Joint Core Strategy,14045003,DEBT104787,Tewkesbury Borough Council,R4400-PLP101,Services - Professional Fees,20/05/2016,"3,500.00"
http://statistics.data.gov.uk/id/local-authority-district/23UB,Cheltenham Borough Council,Joint Core Strategy,14045004,DEBT104792,Tewkesbury Borough Council,R4400-PLP101,Services - Professional Fees,27/05/2016,571.95
http://statistics.data.gov.uk/id/local-authority-district/23UB,Cheltenham Borough Council,Community Welfare Grants,14043979,70018931,The Cheltenham Trust,R6280-GBD001,Grants,06/05/2016,"1,104.00"
http://statistics.data.gov.uk/id/local-authority-district/23UB,Cheltenham Borough Council,Police & Crime Commissioner Elections,14044751,70020232,The Cheltenham Trust,R4900-ELE008,Accomodation Costs,20/05/2016,"2,581.00"
http://statistics.data.gov.uk/id/local-authority-district/23UB,Cheltenham Borough Council,District Elections,14044751,70020232,The Cheltenham Trust,R4900-ELE002,Accomodation Costs,20/05/2016,"1,039.16"
http://statistics.data.gov.uk/id/local-authority-district/23UB,Cheltenham Borough Council,Cultural - Service Management and Support Services,14044790,70020279,The Cheltenham Trust,R5001-CSM001,TPP - Major External Contractors,13/05/2016,"63,658.37"
http://statistics.data.gov.uk/id/local-authority-district/23UB,Cheltenham Borough Council,Cultural - Service Management and Support Services,14045105,70020822,The Cheltenham Trust,R5001-CSM001,TPP - Major External Contractors,27/05/2016,"63,658.37"
http://statistics.data.gov.uk/id/local-authority-district/23UB,Cheltenham Borough Council,Community Welfare Grants,14045068,70020840,The Cheltenham Trust,R6280-GBD001,Grants,27/05/2016,"18,000.00"
http://statistics.data.gov.uk/id/local-authority-district/23UB,Cheltenham Borough Council,2020 Vision,14044742,635-3075,The Hay Group Management Limited,R4400-COR102,Services - Professional Fees,06/05/2016,"12,000.00"
http://statistics.data.gov.uk/id/local-authority-district/23UB,Cheltenham Borough Council,General Fund Balance Sheet,14044820,8.50028E+11,The Midcounties Co-operative,B6170-BAL100,Short Term Revenue Creditors (incl RIA) - Other entities and individuals,13/05/2016,"3,097.00"
http://statistics.data.gov.uk/id/local-authority-district/23UB,Cheltenham Borough Council,Community Welfare Grants,14045058,3084,The Rock,R6280-GBD001,Grants,27/05/2016,598.18
http://statistics.data.gov.uk/id/local-authority-district/23UB,Cheltenham Borough Council,Disabled Facility Grants,14045245,16/00022/DM00C,The Surveying Practice - Client Account,C5000-CAP221,Grants,27/05/2016,"6,880.48"
http://statistics.data.gov.uk/id/local-authority-district/23UB,Cheltenham Borough Council,Disabled Facility Grants,14044819,REDACTED,The Surveying Practice - Client Account,C5000-CAP221,Grants,06/05/2016,"1,510.85"
http://statistics.data.gov.uk/id/local-authority-district/23UB,Cheltenham Borough Council,Car Parks - Off Street R&M,14044886,CI16009916,ThyssenKrupp Elevator UK,R2004-CPK101,R & M of Build Programmed,27/05/2016,"3,742.00"
http://statistics.data.gov.uk/id/local-authority-district/23UB,Cheltenham Borough Council,Recreation Centre Repairs & Maintenance,14044767,51197,Total Floor Care Limited,R2004-REC111,R & M of Build Programmed,06/05/2016,"1,700.00"
http://statistics.data.gov.uk/id/local-authority-district/23UB,Cheltenham Borough Council,Recreation Centre Repairs & Maintenance,14044768,51198,Total Floor Care Limited,R2004-REC111,R & M of Build Programmed,06/05/2016,"6,590.00"
http://statistics.data.gov.uk/id/local-authority-district/23UB,Cheltenham Borough Council,Lift Refurbishment,14045011,INV64740,Triangle Lift Services Limited,C1107-CAH011,Building Works,20/05/2016,"2,500.00"
http://statistics.data.gov.uk/id/local-authority-district/23UB,Cheltenham Borough Council,Repairs and Maintenance,14044851,INV65526,Triangle Lift Services Limited,R2041-HRA100,R & M of Build Lifts,13/05/2016,"4,183.75"
http://statistics.data.gov.uk/id/local-authority-district/23UB,Cheltenham Borough Council,Repairs and Maintenance,14044989,INV65640,Triangle Lift Services Limited,R2041-HRA100,R & M of Build Lifts,20/05/2016,"7,963.75"
http://statistics.data.gov.uk/id/local-authority-district/23UB,Cheltenham Borough Council,Community Alarms,14042459,3IN/10273006,Tunstall Healthcare (UK) Limited,R4000-SPP002,Equipment Purchase,20/05/2016,"2,220.00"
http://statistics.data.gov.uk/id/local-authority-district/23UB,Cheltenham Borough Council,Community Alarms,14044557,3IN/10278854,Tunstall Healthcare (UK) Limited,R4000-SPP002,Equipment Purchase,13/05/2016,761.00
http://statistics.data.gov.uk/id/local-authority-district/23UB,Cheltenham Borough Council,Press & PR/Communications,14044991,4163649,University of Gloucestershire,R1652-SUP018,Training Fees (External),27/05/2016,950.00
http://statistics.data.gov.uk/id/local-authority-district/23UB,Cheltenham Borough Council,Car Parks - Off Street Operations,14044875,chl00246,Verrus (UK) Limited (Pay By Phone),R4401-CPK001,Services - Fees and Charges,20/05/2016,"2,797.42"
http://statistics.data.gov.uk/id/local-authority-district/23UB,Cheltenham Borough Council,ICT,14045031,912686-072,Virgin Media Business,R4514-SUP005,Comms - Telephone Rental/Service Charges,20/05/2016,"5,644.32"
http://statistics.data.gov.uk/id/local-authority-district/23UB,Cheltenham Borough Council,ICT,14045032,912686-077,Virgin Media Business,R4514-SUP005,Comms - Telephone Rental/Service Charges,20/05/2016,"30,002.60"
http://statistics.data.gov.uk/id/local-authority-district/23UB,Cheltenham Borough Council,Bulky Household Waste,14044781,16-Oct,Vision 21,R4401-WST004,Services - Fees and Charges,13/05/2016,"3,575.00"
http://statistics.data.gov.uk/id/local-authority-district/23UB,Cheltenham Borough Council,Community Welfare Grants,14044869,community pride 060516,Vision 21,R6280-GBD001,Grants,13/05/2016,"1,366.00"
http://statistics.data.gov.uk/id/local-authority-district/23UB,Cheltenham Borough Council,Vision 2020 - Public Protection Project,14044787,33133496,West Oxfordshire District Council,R4400-COR103,Services - Professional Fees,13/05/2016,"13,506.55"
http://statistics.data.gov.uk/id/local-authority-district/23UB,Cheltenham Borough Council,Community Welfare Grants,14044871,pos act ckyc 10.05.16,CHARLTON KINGS YOUTH CLUB,R6280-GBD001,Grants,13/05/2016,"5,473.50"
http://statistics.data.gov.uk/id/local-authority-district/23UB,Cheltenham Borough Council,Community Welfare Grants,14044872,hig coram 060516,CORAM LIFE EDUCATION (GLOUCESTERSHIRE),R6280-GBD001,Grants,13/05/2016,"4,500.00"
http://statistics.data.gov.uk/id/local-authority-district/23UB,Cheltenham Borough Council,Homelessness,14044842,REDACTED,HMT LETTINGS,R6280-HOM001,Grants,13/05/2016,600.00
http://statistics.data.gov.uk/id/local-authority-district/23UB,Cheltenham Borough Council,Rent Control,14044775,RENT REFUND ( REDACTED),REDACTED,R9910-HRA900,Refund of Overpiad Rent,06/05/2016,"1,655.00"
http://statistics.data.gov.uk/id/local-authority-district/23UB,Cheltenham Borough Council,Rent Control,14044777,RENT REFUND (REDACTED),REDACTED,R9910-HRA900,Refund of Overpiad Rent,06/05/2016,"2,063.94"
http://statistics.data.gov.uk/id/local-authority-district/23UB,Cheltenham Borough Council,General Fund Balance Sheet,14044706,Balance 270416,Mayor's Charity Cheltenham,B6170-BAL100,Short Term Revenue Creditors (incl RIA) - Other entities and individuals,06/05/2016,"3,141.89"
http://statistics.data.gov.uk/id/local-authority-district/23UB,Cheltenham Borough Council,Rent Control,14045231,rent refund (REDACTED),REDACTED,R9910-HRA900,Refund of Overpiad Rent,27/05/2016,601.55
http://statistics.data.gov.uk/id/local-authority-district/23UB,Cheltenham Borough Council,Rent Control,14044938,RENT REFUNS (REDACTED),REDACTED,R9910-HRA900,Refund of Overpiad Rent,13/05/2016,"1,276.22"
http://statistics.data.gov.uk/id/local-authority-district/23UB,Cheltenham Borough Council,Building Control - Fee Earning Work,14044773,REDACTED,VJM DESIGN HOUSE LTD,R9301-BUC001,Fees - Building Regulations,06/05/2016,820.00
http://statistics.data.gov.uk/id/local-authority-district/23UB,Cheltenham Borough Council,Treasury Management,10018823,Direct Debit ,SERVICE CHARGES   195731073,R4403-COR006,Bank Charges,03/05/2016,959.36
http://statistics.data.gov.uk/id/local-authority-district/23UB,Cheltenham Borough Council,Supervision and Management,10018889,Direct Debit ,SOUTHERN ELECTRIC  DD 406098431,R2100-HRA110,Electricity,05/05/2016,"3,296.36"
http://statistics.data.gov.uk/id/local-authority-district/23UB,Cheltenham Borough Council,Telephones,10018858,Direct Debit ,VIRGIN MEDIA DD 10828101501,R4515-SUP006,Comms - Telephone Call Charges,04/05/2016,694.50
http://statistics.data.gov.uk/id/local-authority-district/23UB,Cheltenham Borough Council,Debtors,10018858,Direct Debit ,VIRGIN MEDIA DD 506761601005,R4515-SUP012,Comms - Telephone Call Charges,04/05/2016,"1,389.04"
http://statistics.data.gov.uk/id/local-authority-district/23UB,Cheltenham Borough Council,Debtors,10018858,Direct Debit ,VIRGIN MEDIA DD 506761601005,R4436-SUP012,CCTV Line Rental,04/05/2016,"1,836.39"
http://statistics.data.gov.uk/id/local-authority-district/23UB,Cheltenham Borough Council,Pensions Backfunding,10018858,Direct Debit ,PENSION BACK FUNDING - RE APRIL 16,R1901-SUP038,Contribution to Pension Fund,04/05/2016,"245,500.00"
http://statistics.data.gov.uk/id/local-authority-district/23UB,Cheltenham Borough Council,Arle Road Nursery Operations,10018993,Direct Debit ,SOUTHERN ELECTRIC - ARLE NURSERY,R2100-OPS101,Electricity,11/05/2016,512.16
http://statistics.data.gov.uk/id/local-authority-district/23UB,Cheltenham Borough Council,"Cemetery, Crematorium and Churchyards",10018993,Direct Debit ,SOUTHERN ELECTRIC - CEMETARY & CREMATORIUM,R2100-CCM001,Electricity,11/05/2016,656.17
http://statistics.data.gov.uk/id/local-authority-district/23UB,Cheltenham Borough Council,Pittville Pump Room Repairs & Maintenance,10018993,Direct Debit ,SOUTHERN ELECTRIC - PITTVILLE PUMP ROOMS,R2100-CUL113,Electricity,11/05/2016,705.21
http://statistics.data.gov.uk/id/local-authority-district/23UB,Cheltenham Borough Council,Sports & Open Spaces Operations,10018993,Direct Debit ,SOUTHERN ELECTRIC - SWINDON ROAD PAVILLION,R2100-OPS002,Electricity,11/05/2016,789.82
http://statistics.data.gov.uk/id/local-authority-district/23UB,Cheltenham Borough Council,Sports & Open Spaces Operations,10018993,Direct Debit ,SOUTHERN ELECTRIC - KING GEORGE V PAVILLION,R2100-OPS002,Electricity,11/05/2016,858.03
http://statistics.data.gov.uk/id/local-authority-district/23UB,Cheltenham Borough Council,Pittville Pump Room Repairs & Maintenance,10018993,Direct Debit ,SOUTHERN ELECTRIC - PITTVILLE PUMP ROOMS,R2100-CUL113,Electricity,11/05/2016,925.28
http://statistics.data.gov.uk/id/local-authority-district/23UB,Cheltenham Borough Council,Car Parks - Off Street Operations,10018993,Direct Debit ,SOUTHERN ELECTRIC - CAR PARK GROSVENOR TERRACE,R2100-CPK001,Electricity,11/05/2016,927.32
http://statistics.data.gov.uk/id/local-authority-district/23UB,Cheltenham Borough Council,Sports & Open Spaces Operations,10018993,Direct Debit ,SOUTHERN ELECTRIC - KING GEORGE V PAVILLION,R2100-OPS002,Electricity,11/05/2016,951.73
http://statistics.data.gov.uk/id/local-authority-district/23UB,Cheltenham Borough Council,Art Gallery & Museum Repairs & Maintenance,10018993,Direct Debit ,SOUTHERN ELECTRIC - ART GALLERY & MUSEUM,R2100-CUL117,Electricity,11/05/2016,"1,074.13"
http://statistics.data.gov.uk/id/local-authority-district/23UB,Cheltenham Borough Council,Art Gallery & Museum Repairs & Maintenance,10018993,Direct Debit ,SOUTHERN ELECTRIC - CHELTENHAM ART GALLERY & MUSEUM,R2100-CUL117,Electricity,11/05/2016,"1,160.28"
http://statistics.data.gov.uk/id/local-authority-district/23UB,Cheltenham Borough Council,Supervision and Management,10018994,Direct Debit ,SOUTHERN ELECTRIC DD 406098431,R2100-HRA110,Electricity,11/05/2016,"1,909.47"
http://statistics.data.gov.uk/id/local-authority-district/23UB,Cheltenham Borough Council,Art Gallery & Museum Repairs & Maintenance,10018993,Direct Debit ,SOUTHERN ELECTRIC - ART GALLERY & MUSEUM,R2100-CUL117,Electricity,11/05/2016,"2,195.47"
http://statistics.data.gov.uk/id/local-authority-district/23UB,Cheltenham Borough Council,Recreation Centre Operations,10018993,Direct Debit ,SOUTHERN ELECTRIC - PRINCE OF WALES STADIUM,R2100-REC101,Electricity,11/05/2016,"7,777.46"
http://statistics.data.gov.uk/id/local-authority-district/23UB,Cheltenham Borough Council,Supervision and Management,10018994,Direct Debit ,SOUTHERN ELECTRIC DD 406098431,R2100-HRA110,Electricity,11/05/2016,"15,684.88"
http://statistics.data.gov.uk/id/local-authority-district/23UB,Cheltenham Borough Council,Car Parks - Off Street Operations,10019240,Direct Debit ,STREAMLINE J1823853,R4428-CPK001,Services - credit card charges,24/05/2016,"2,437.51"
http://statistics.data.gov.uk/id/local-authority-district/23UB,Cheltenham Borough Council,Treasury Management,10019259,Direct Debit ,CARDNET  DD500200738,R4428-COR006,Services - credit card charges,25/05/2016,"2,015.50"
http://statistics.data.gov.uk/id/local-authority-district/23UB,Cheltenham Borough Council,AGM Trading Account,10019259,Direct Debit ,CARDNET  DD169118221,R4428-TAC101,Services - credit card charges,25/05/2016,"2,588.93"
http://statistics.data.gov.uk/id/local-authority-district/23UB,Cheltenham Borough Council,Environmental Health General,10019277,Direct Debit ,VODAFONE 79904767,R4507-REG001,Comms - Mobile Telephones,26/05/2016,539.03
http://statistics.data.gov.uk/id/local-authority-district/23UB,Cheltenham Borough Council,Supervision and Management,10019277,Direct Debit ,VODAFONE 79904767,R4507-HRA110,Comms - Mobile Telephones,26/05/2016,"2,977.32"
http://statistics.data.gov.uk/id/local-authority-district/23UB,Cheltenham Borough Council,Recreation Centre Repairs & Maintenance,10019304,Direct Debit ,E ON - SWIMMING POOL & REC CENTRE,R2100-REC111,Electricity,27/05/2016,"1,989.82"
http://statistics.data.gov.uk/id/local-authority-district/23UB,Cheltenham Borough Council,Art Gallery & Museum Repairs & Maintenance,10019304,Direct Debit ,E ON - ART GALLERY & MUSEUM,R2100-CUL117,Electricity,27/05/2016,"2,562.64"
http://statistics.data.gov.uk/id/local-authority-district/23UB,Cheltenham Borough Council,Town Hall Repairs & Maintenance,10019304,Direct Debit ,E ON - TOWN HALL,R2100-CUL112,Electricity,27/05/2016,"2,628.05"
http://statistics.data.gov.uk/id/local-authority-district/23UB,Cheltenham Borough Council,Cheltenham Depot,10019304,Direct Debit ,E ON - CENTRAL DEPOT - SWINDON ROAD,R2100-ADB103,Electricity,27/05/2016,"2,900.37"
http://statistics.data.gov.uk/id/local-authority-district/23UB,Cheltenham Borough Council,Cheltenham Municipal Offices,10019304,Direct Debit ,E ON - MUNICIPAL OFFICES,R2100-ADB101,Electricity,27/05/2016,"3,596.61"
http://statistics.data.gov.uk/id/local-authority-district/23UB,Cheltenham Borough Council,Recreation Centre Repairs & Maintenance,10019304,Direct Debit ,E ON -  RECREATION CENTRE,R2100-REC111,Electricity,27/05/2016,"3,851.62"
http://statistics.data.gov.uk/id/local-authority-district/23UB,Cheltenham Borough Council,Supervision and Management,10019305,Direct Debit ,TOTAL - BULLINGTON COURT,R2101-HRA110,Gas,27/05/2016,539.16
http://statistics.data.gov.uk/id/local-authority-district/23UB,Cheltenham Borough Council,"Cemetery, Crematorium and Churchyards",10019305,Direct Debit ,TOTAL - CREMATORIUM,R2101-CCM001,Gas,27/05/2016,610.83
http://statistics.data.gov.uk/id/local-authority-district/23UB,Cheltenham Borough Council,Pittville Pump Room Repairs & Maintenance,10019305,Direct Debit ,TOTAL - PITTVILLE PUMP ROOM,R2101-CUL113,Gas,27/05/2016,633.53
http://statistics.data.gov.uk/id/local-authority-district/23UB,Cheltenham Borough Council,Supervision and Management,10019305,Direct Debit ,TOTAL - POPES CLOSE,R2101-HRA110,Gas,27/05/2016,683.27
http://statistics.data.gov.uk/id/local-authority-district/23UB,Cheltenham Borough Council,"Cemetery, Crematorium and Churchyards",10019305,Direct Debit ,TOTAL - CREMATORIUM,R2101-CCM001,Gas,27/05/2016,729.17
http://statistics.data.gov.uk/id/local-authority-district/23UB,Cheltenham Borough Council,Supervision and Management,10019305,Direct Debit ,TOTAL - GILBERT WARD COURT,R2101-HRA110,Gas,27/05/2016,732.26
http://statistics.data.gov.uk/id/local-authority-district/23UB,Cheltenham Borough Council,Supervision and Management,10019305,Direct Debit ,TOTAL - WALLACE HOUSE,R2101-HRA110,Gas,27/05/2016,852.23
http://statistics.data.gov.uk/id/local-authority-district/23UB,Cheltenham Borough Council,Supervision and Management,10019305,Direct Debit ,TOTAL - COOPERS COURT,R2101-HRA110,Gas,27/05/2016,982.64
http://statistics.data.gov.uk/id/local-authority-district/23UB,Cheltenham Borough Council,Recreation Centre Repairs & Maintenance,10019305,Direct Debit ,TOTAL - RECREATION CENTRE,R2101-REC111,Gas,27/05/2016,987.95
http://statistics.data.gov.uk/id/local-authority-district/23UB,Cheltenham Borough Council,Art Gallery & Museum Repairs & Maintenance,10019305,Direct Debit ,TOTAL  - ART GALLERY & MUSEUM,R2101-CUL117,Gas,27/05/2016,"1,168.82"
http://statistics.data.gov.uk/id/local-authority-district/23UB,Cheltenham Borough Council,Art Gallery & Museum Repairs & Maintenance,10019305,Direct Debit ,TOTAL  - ART GALLERY & MUSEUM,R2101-CUL117,Gas,27/05/2016,"1,224.71"
http://statistics.data.gov.uk/id/local-authority-district/23UB,Cheltenham Borough Council,Town Hall Repairs & Maintenance,10019305,Direct Debit ,TOTAL - TOWN HALL,R2101-CUL112,Gas,27/05/2016,"1,682.27"
http://statistics.data.gov.uk/id/local-authority-district/23UB,Cheltenham Borough Council,Cheltenham Municipal Offices,10019305,Direct Debit ,TOTAL - MUNICIPAL OFFICES,R2101-ADB101,Gas,27/05/2016,"1,750.32"
http://statistics.data.gov.uk/id/local-authority-district/23UB,Cheltenham Borough Council,Cheltenham Depot,10019305,Direct Debit ,TOTAL - CENTRAL DEPOT - SWINDON ROAD,R2101-ADB103,Gas,27/05/2016,"2,844.39"
http://statistics.data.gov.uk/id/local-authority-district/23UB,Cheltenham Borough Council,"Cemetery, Crematorium and Churchyards",10019305,Direct Debit ,TOTAL - CREMATORIUM,R2101-CCM001,Gas,27/05/2016,"3,252.27"
http://statistics.data.gov.uk/id/local-authority-district/23UB,Cheltenham Borough Council,Recreation Centre Repairs & Maintenance,10019305,Direct Debit ,TOTAL - RECREATION CENTRE,R2101-REC111,Gas,27/05/2016,"10,739.02"
